Cogmind - Beta 14 @@@ ROGUE MODE // 2024.11.29 @ 10:11:20 Player: Shimmyarah Result: Destroyed by B-75 Beast with Heavy Plasma Cannon Performance ------------- Evolutions (4) 2000 Regions Visited (5) 1000 Robots Destroyed (16) 80 Value Destroyed (161) 161 Prototype IDs (11) 220 Alien Tech Used (0) 0 Bonus (300) 300 TOTAL SCORE: 3761 Bonus ------- Registered with UFD 300 Cogmind --------- Core Integrity 0/850 Matter 28/300 Energy 60/100 System Corruption 0% Temperature Cool (12) Movement Core (50) Location -6/Factory Parts ------- > --- POWER (2) -------- (None) > --- PROPULSION (4) --- (None) > --- UTILITY (6) ------ (None) > --- WEAPON (3) ------- (None) > --- INVENTORY (5) ---- Force Field Remote Shield Vortex Trap Peak State ------------ > --- POWER ------------ Deuterium Engine Deuterium Engine > --- PROPULSION ------- Light Treads Light Treads Wheel Armored Wheel > --- UTILITY ---------- High-capacity Storage Unit Trap Scanner Microactuators Microactuators Actuator Array Utility Shielding > --- WEAPON ----------- Gatling Laser Maul Heavy Hammer > --- INVENTORY -------- Deuterium Engine Light Fission Core Light Treads Light Treads Heat Sink Microactuators Medium Armor Plating Remote Shield Subdweller Shrapnel Launcher Subdweller Shrapnel Launcher Vortex Trap Vortex Trap Vortex Trap [Rating: 37] Favorites ----------- Power Ion Engine Engine Ion Engine Power Core Light Fission Core Propulsion Wheel Treads Light Treads Leg Aluminum Leg Wheel Wheel Hover Unit Gravmag Array Flight Unit Flight Unit Utility Seismic Detector Device Seismic Detector Storage High-capacity Storage Unit Protection Utility Shielding Weapon Assault Rifle Energy Gun Medium Laser Ballistic Gun Assault Rifle Ballistic Cannon Light Cannon Launcher Subdweller Shrapnel Launcher Special Weapon Mining Laser Impact Weapon Heavy Hammer Build | -11 -10 -10 -9 -9 -6 ------- Run | Yrd Mat Sub Rec Scr Fac Slots Evolved 8 | . . . . . 8 Power 1 | . . . . . 1 Propulsion 2 | . . . . . 2 Utility 4 | . . . . . 4 Weapon 1 | . . . . . 1 Parts Attached 122 | 4 24 10 . 58 26 Power 8 | . . . . 5 3 Engine 7 | . . . . 5 2 Core 1 | . . . . . 1 Reactor . | . . . . . . Propulsion 37 | 2 8 3 . 15 9 Treads 14 | . 4 1 . 2 7 Leg . | . . . . . . Wheel 20 | 2 3 2 . 12 1 Hover 2 | . . . . 1 1 Flight 1 | . 1 . . . . Utility 42 | 1 5 3 . 23 10 Device 23 | 1 4 2 . 7 9 Storage 15 | . 1 . . 14 . Processor . | . . . . . . Hackware . | . . . . . . Protection 4 | . . 1 . 2 1 Artifact . | . . . . . . Weapon 35 | 1 11 4 . 15 4 Energy Gun 6 | . 1 . . 4 1 Energy Cannon . | . . . . . . Ballistic Gun 11 | 1 4 1 . 5 . Ballistic Cannon 3 | . 1 2 . . . Launcher 6 | . . . . 3 3 Special Weapon 7 | . 5 1 . 1 . Impact Weapon 2 | . . . . 2 . Slashing Weapon . | . . . . . . Piercing Weapon . | . . . . . . Special Melee Weapon . | . . . . . . Unidentified Prototypes . | . . . . . . Parts Lost 19 | . . . . . 19 Power 2 | . . . . . 2 Propulsion 8 | . . . . . 8 Utility 5 | . . . . . 5 Weapon 4 | . . . . . 4 Highest Loss Streak 15 | . . . . . 15 To Critical Strikes . | . . . . . . Average Slot Usage (%) 79 | . 100 100 100 76 57 Engine 12 | . 14 14 14 12 7 Treads 3 | . 16 25 . . 9 Wheel 22 | . 11 2 28 24 6 Device 12 | . 14 10 14 12 16 Storage 9 | . 14 14 14 8 3 Energy Gun 1 | . 9 . . 1 1 Ballistic Gun 7 | . 13 14 14 6 . Ballistic Cannon 2 | . . 12 14 1 . Launcher 2 | . . . . 3 . Impact Weapon 2 | . . . . 2 7 Peak Build Rating 37 | 8 10 8 8 17 37 Average Rating 9 | 6 8 7 8 8 23 On Entrance 9 | 6 8 8 8 8 16 Naked Turns 232 | . . . . 200 32 Heaviest Build 80 | 15 20 21 21 56 80 Greatest Support 40 | 20 40 40 20 40 22 Greatest Overweight (x) 14 | . 1 1 1 14 5 Average Overweight (x) . | . . . 1 . 1 Largest Inventory Capacity 20 | 8 10 10 10 20 20 Average Capacity 12 | 8 9 10 10 12 14 Most Carried 20 | 8 10 10 10 20 19 Average Carried 8 | 6 9 9 10 8 9 Final Capacity 20 | 8 10 10 10 20 5 Final Carried 20 | 8 10 10 10 20 3 Class Distribution -------------------- 82% | Mutant 13% | Derelict-Mutant Dominant Class ---------------- Mutant | -10/Materials Mutant | -10/Subcaves Mutant | -9/Recycling Mutant | -9/Scraptown Derelict-Gladiator | -6/Factory Resources | -11 -10 -10 -9 -9 -6 ----------- Run | Yrd Mat Sub Rec Scr Fac Matter Collected 1332 | 252 305 126 . 588 61 Remotely . | . . . . . . Salvage Created 434 | 107 263 64 . . . Parts 33 | 5 19 9 . . . Haulers Intercepted 2 | . 2 . . . . Recyclers Shooed 3 | . 3 . . . . Parts Field Recycled . | . . . . . . Retrieved Matter . | . . . . . . Parts Self-Destructed 9 | . . 9 . . . Prevented . | . . . . . . Kills | -11 -10 -10 -9 -9 -6 ------- Run | Yrd Mat Sub Rec Scr Fac Combat Hostiles Destroyed 6 | . 2 4 . . . Guns 4 | . 2 2 . . . Cannons 2 | . . 2 . . . Classes Destroyed 7 | 2 4 1 . . . Worker 2 | . 2 . . . . Tunneler 1 | 1 . . . . . Hauler 2 | . 2 . . . . Recycler 2 | 1 1 . . . . Turret 2 | . . 2 . . . Watcher 1 | . 1 . . . . Swarmer 6 | . 2 4 . . . Best Kill Streak 4 | 2 2 4 . . . Combat Bots Only 4 | . 2 4 . . . Max Kills in Single Turn 2 | 1 2 1 . . . Gunslinging . | . . . . . . Exploded . | . . . . . . Melee . | . . . . . . Uniques/NPCs Destroyed . | . . . . . . Combat | -11 -10 -10 -9 -9 -6 -------- Run | Yrd Mat Sub Rec Scr Fac Hostile Shots Fired 283 | . 4 63 . . 216 Missed 94 | . 2 27 . . 65 Damage Taken 3011 | . 23 249 . . 2739 Core 883 | . 3 9 . . 871 Absorbed by Shields . | . . . . . . Redirected to Shielding 51 | . . 5 . . 46 Core Remaining (%) 97 | 100 . . . 95 . Volleys Fired 60 | 4 36 19 . . 1 Largest 2 | 2 2 2 . . 1 Hottest 120 | 70 120 100 . . 40 Shots Fired 110 | 8 64 37 . . 1 Gun 79 | 8 53 18 . . . Cannon 18 | . . 18 . . . Launcher 1 | . . . . . 1 Special 12 | . 11 1 . . . Kinetic 77 | 4 36 36 . . 1 Thermal 33 | 4 28 1 . . . Explosive . | . . . . . . Electromagnetic . | . . . . . . Robot Hit Streak 8 | 6 6 7 . . 8 Robot Miss Streak 8 | 2 8 3 . . . Penetration Max . | . . . . . . Secondary Targets . | . . . . . . Shots Hit Robots 60 | 6 31 22 . . 1 Core Hits 24 | 3 11 9 . . 1 Critical Kills . | . . . . . . Critical Parts Destroyed . | . . . . . . Critical Strikes 1 | . 1 . . . . Burn 1 | . 1 . . . . Melee Attacks 4 | . . . . . 4 Impact 4 | . . . . . 4 Slashing . | . . . . . . Piercing . | . . . . . . Sneak Attacks . | . . . . . . Combat Hostiles . | . . . . . . Follow-up Attacks . | . . . . . . Damage Inflicted 875 | 74 428 317 . . 56 Guns 629 | 74 409 146 . . . Cannons 171 | . . 171 . . . Explosions 56 | . . . . . 56 Melee . | . . . . . . Ramming 19 | . 19 . . . . Kinetic 718 | 36 309 317 . . 56 Thermal 138 | 38 100 . . . . Explosive . | . . . . . . Electromagnetic . | . . . . . . Impact . | . . . . . . Slashing . | . . . . . . Piercing . | . . . . . . Highest Corruption 1 | . 1 1 1 . . Average Corruption 1 | . 1 1 1 . . Corruption Purged . | . . . . . . Corruption Blocked . | . . . . . . Effects 12 | . 8 2 2 . . Message Errors 4 | . 2 1 1 . . Matter Fused 3 | . 3 . . . . Heat Flow Errors 1 | . . 1 . . . Data Loss (minor) 3 | . 2 . 1 . . Misfires 1 | . 1 . . . . Overload Shots . | . . . . . . Overflow Damage 3 | . . 3 . . . Projectiles 3 | . . 3 . . . Explosions . | . . . . . . Melee . | . . . . . . Knockbacks 6 | . 1 5 . . . Impact 1 | . 1 . . . . Kinetic 5 | . . 5 . . . Secondary . | . . . . . . Self-Inflicted Damage 4 | . 4 . . . . Shots . | . . . . . . Rammed 4 | . 4 . . . . Targets Rammed 4 | . 4 . . . . Kicked . | . . . . . . Crushed . | . . . . . . Highest Temperature 131 | 18 27 131 . . 9 Average Temperature 13 | 10 11 72 . . 9 Received Heat Transfer 553 | . . 162 . . 391 Siege Activations . | . . . . . . Robots Corrupted . | . . . . . . Combat Hostiles . | . . . . . . Parts Fried . | . . . . . . Impact Corruptions . | . . . . . . Robots Melted . | . . . . . . Combat Hostiles . | . . . . . . Parts Melted . | . . . . . . Heat Transferred 481 | 111 370 . . . . Parts Sabotaged . | . . . . . . Parts Stolen . | . . . . . . Parts Stripped . | . . . . . . Power Chain Reactions . | . . . . . . Alert | -11 -10 -10 -9 -9 -6 ------- Run | Yrd Mat Sub Rec Scr Fac Peak Influence 120 | 10 120 . 108 . 54 Initial 103 | . 6 . 103 . . Average 50 | 6 48 . 107 . 22 Maximum Alert Level . | . . . . . . Low Security (%) 100 | 100 100 . 100 . 100 Level 1 . | . . . . . . Level 2 . | . . . . . . Level 3 . | . . . . . . Level 4 . | . . . . . . Level 5 . | . . . . . . High Security . | . . . . . . Max Security . | . . . . . . Squads Dispatched 1 | . 1 . . . . Investigation . | . . . . . . Extermination . | . . . . . . Reinforcement 1 | . 1 . . . . Assault . | . . . . . . Garrison . | . . . . . . Intercept . | . . . . . . Searches Triggered . | . . . . . . Construction Impeded . | . . . . . . Haulers Reinforced . | . . . . . . Active Scanning Responses . | . . . . . . Cargo Convoy Interrupts . | . . . . . . Stealth | -11 -10 -10 -9 -9 -6 --------- Run | Yrd Mat Sub Rec Scr Fac Distress Signals 2 | . . . . . 2 Communications Jammed . | . . . . . . Distress Signals . | . . . . . . Times Spotted 22 | . 7 7 . . 8 Peak Tracking Total 5 | . 3 3 . . 5 Tactical Retreats 8 | . 1 4 . . 3 Traps | -11 -10 -10 -9 -9 -6 ------- Run | Yrd Mat Sub Rec Scr Fac Traps Triggered . | . . . . . . Indirectly . | . . . . . . Trap Hack Attempts . | . . . . . . Triggered . | . . . . . . Disarmed . | . . . . . . Reprogrammed . | . . . . . . Reused 2 | . . . . . 2 Traps Extracted . | . . . . . . Installed 2 | . . . . . 2 Triggered 2 | . . . . . 2 Most Traps Carried 3 | . . . . 3 3 Machines | -11 -10 -10 -9 -9 -6 ---------- Run | Yrd Mat Sub Rec Scr Fac Machines Disabled 2 | . . 2 . . . Max in Single Turn 1 | . . 1 . . . Machines Repaired . | . . . . . . Machines Dismantled . | . . . . . . Machines Sabotaged . | . . . . . . Overloaded Fab Kills . | . . . . . . Hacking | -11 -10 -10 -9 -9 -6 --------- Run | Yrd Mat Sub Rec Scr Fac Machines Accessed 19 | . 4 . 3 11 1 Terminals 6 | . 4 . 1 . 1 Fabricators . | . . . . . . Repair Stations . | . . . . . . Recycling Units . | . . . . . . Scanalyzers . | . . . . . . Garrison Access . | . . . . . . Total Hacks 113 | . 15 . 28 68 2 Successful 102 | . 9 . 25 68 . Failed 11 | . 6 . 3 . 2 Catastrophic 1 | . 1 . . . . Database Lockouts . | . . . . . . Manual 20 | . 14 . 3 . 3 Terminals 21 | . 15 . 4 . 2 Fabricators . | . . . . . . Repair Stations . | . . . . . . Recycling Units . | . . . . . . Scanalyzers . | . . . . . . Garrison Access . | . . . . . . Terminal Hacks 96 | . 3 . 25 68 . Record 84 | . . . 24 60 . Robot Analysis 7 | . . . . 7 . Prototype ID Bank 3 | . 2 . 1 . . Registered Components 1 | . 1 . . . . Derelict Proto ID Bank 1 | . . . . 1 . Fabricator Hacks . | . . . . . . Repair Station Hacks . | . . . . . . Recycling Unit Hacks . | . . . . . . Scanalyzer . | . . . . . . Garrison Access Hacks . | . . . . . . Unauthorized Hacks 6 | . 6 . . . . Terminals 6 | . 6 . . . . Botnet 3 | . 3 . . . . Skim 3 | . 3 . . . . Fabricators . | . . . . . . Repair Stations . | . . . . . . Recycling Units . | . . . . . . Scanalyzers . | . . . . . . Garrison Access . | . . . . . . Data Cores Recovered . | . . . . . . Used . | . . . . . . Hacking Detections 6 | . 4 . 1 . 1 Full Trace Events 1 | . 1 . . . . Feedback Events 1 | . 1 . . . . Corruption 1 | . 1 . . . . Feedback Blocked . | . . . . . . Robot Schematics Acquired . | . . . . . . Robots Built . | . . . . . . Authchips . | . . . . . . Time . | . . . . . . Total Robot Build Rating . | . . . . . . Part Schematics Acquired . | . . . . . . Parts Built . | . . . . . . Authchips . | . . . . . . Time . | . . . . . . Total Part Build Rating . | . . . . . . Parts Repaired . | . . . . . . Time . | . . . . . . Parts Recycled . | . . . . . . Recycled Matter . | . . . . . . Retrieved Matter . | . . . . . . Retrieved Components . | . . . . . . Parts Scanalyzed . | . . . . . . Part Schematics Acquired . | . . . . . . Parts Damaged . | . . . . . . Bothacking | -11 -10 -10 -9 -9 -6 ------------ Run | Yrd Mat Sub Rec Scr Fac Used RIF Installer . | . . . . . . Robots Hacked . | . . . . . . Non-combat . | . . . . . . Combat . | . . . . . . Robot Hacks Applied . | . . . . . . Relay Couplers Released . | . . . . . . Fabnet Peak Effective % . | . . . . . . Robots Rewired . | . . . . . . Allies Hacked . | . . . . . . Hacks Repelled . | . . . . . . Allies | -11 -10 -10 -9 -9 -6 -------- Run | Yrd Mat Sub Rec Scr Fac Total Allies . | . . . . . . Largest Group . | . . . . . . Highest-Rated Group . | . . . . . . Highest-Rated Ally . | . . . . . . Total Orders . | . . . . . . Ally Attacks . | . . . . . . Total Damage . | . . . . . . Kills . | . . . . . . Allies Corrupted . | . . . . . . Allies Melted . | . . . . . . Intel | -11 -10 -10 -9 -9 -6 ------- Run | Yrd Mat Sub Rec Scr Fac Robot Analysis Total 7 | . . . . 7 . Derelict Logs Recovered 2 | . . . . 2 . Drone Launches . | . . . . . . Drone Recoveries . | . . . . . . Exploration | -11 -10 -10 -9 -9 -6 ------------- Run | Yrd Mat Sub Rec Scr Fac Turns Passed 8483 | 58 833 296 218 6795 283 Spaces Moved 7947 | 38 482 145 230 6806 246 Core 605 | . . . . 452 153 Treads 460 | . 252 114 . 90 4 Legs 20 | 20 . . . . . Wheels 6862 | 18 230 31 230 6264 89 Hover . | . . . . . . Flight . | . . . . . . Fastest Speed 50 | 80 80 95 95 50 50 Average Speed 97 | 101 122 146 95 95 86 Slowest Speed 750 | 120 160 160 95 750 400 Overloaded Moves . | . . . . . . Propulsion Burnouts . | . . . . . . Robots Hopped . | . . . . . . Cave-ins Triggered . | . . . . . . Exploration Rate (%) 32 | 4 45 5 36 96 9 Regions Visited 5 Branch Regions 3 Pre-discovered Areas 6 | . . . . 6 . Known Exits Taken . | . . . . . . Unknown Exits Taken 5 | 1 1 1 1 1 . Scrap Searched 9 | . . . . 9 . Spaces Dug 14 | . 10 . . . 4 Terrain Destroyed 22 | . 11 . . . 11 Melee 4 | . . . . . 4 Projectile 11 | . 11 . . . . AOE 7 | . . . . . 7 Terrain Rammed . | . . . . . . Walls Destroyed . | . . . . . . Machines Disabled . | . . . . . . Actions | -11 -10 -10 -9 -9 -6 --------- Run | Yrd Mat Sub Rec Scr Fac Total 8556 | 47 635 189 229 7140 316 Wait 144 | . 72 8 . 47 17 Move 7942 | 37 481 144 229 6805 246 Hop . | . . . . . . Pick Up 173 | 2 9 3 . 154 5 Fast Attach 12 | 1 1 . . 8 2 Attach 63 | . 2 . . 41 20 Detach 5 | . . . . 2 3 Swap 47 | 3 21 10 . 9 4 Drop 100 | . 9 5 . 74 12 Fire 60 | 4 36 19 . . 1 Melee 4 | . . . . . 4 Ram 2 | . 2 . . . . Kick . | . . . . . . Crush 2 | . 2 . . . . Escape Stasis . | . . . . . . Rewire . | . . . . . . Trap 2 | . . . . . 2 Miscellaneous . | . . . . . . Route ------- -11/Scrapyard -10/Materials (discovered 2 exits: [*Min] / [*Sub]) -10/Subcaves (discovered 2 exits: [*Mat] / *Rec) -9/Recycling -9/Scraptown (discovered 2 exits: *Fac x2) -6/Factory (discovered 5 exits: Fac x3 / Low x2) History --------- Turn | Location | Event 3 | -11/Scrapyard | Discovered new exit (range 3) 59 | -11/Scrapyard | Entered Materials 321 | -10/Materials | Build established: Mutant 424 | -10/Materials | Discovered new exit (range 5) 832 | -10/Materials | Discovered new exit (range 10) 892 | -10/Materials | Entered Subcaves 894 | -10/Subcaves | Discovered new exit (range 11) 932 | -10/Subcaves | Shifting Twisted Machinery released Sub. Shrapnel Launcher 936 | -10/Subcaves | Shifting Twisted Machinery released Sub. Shrapnel Launcher 1029 | -10/Subcaves | Discovered new exit (range 12) 1188 | -10/Subcaves | Entered Recycling 1329 | -9/Recycling | Scanned before Scraplab entrance 1404 | -9/Recycling | Discovered new exit (range 2) 1406 | -9/Recycling | Entered Scraptown 1406 | -9/Scraptown | System corruption cleaned by C-Scrubber 1732 | -9/Scraptown | Heard Great Nut preacher, LISTEN AND RECITE! 1735 | -9/Scraptown | Discovered new exit (range 5) 1808 | -9/Scraptown | Scanned Subdweller tech in exchange for log data 1811 | -9/Scraptown | Learned 8 Research zone layouts 1811 | -9/Scraptown | Learned location of Armory (-4) 1860 | -9/Scraptown | Visited Awakened 1894 | -9/Scraptown | Visited Shadow of the Wyrm 2385 | -9/Scraptown | Visited UFD Registry 2385 | -9/Scraptown | Registered with UFD as "Novaskull" 2398 | -9/Scraptown | Visited Assassins FH 2456 | -9/Scraptown | Visited CPS Storage 2508 | -9/Scraptown | Visited Bundlers 2547 | -9/Scraptown | Visited Symbiants 2590 | -9/Scraptown | Visited Cyclists 2607 | -9/Scraptown | Entered Cyclist Reading Room 2609 | -9/Scraptown | Learned location of Zion (-7) 2903 | -9/Scraptown | Visited Analyses Database 2921 | -9/Scraptown | Visited Science Guys 2965 | -9/Scraptown | Visited Cartography Club 3116 | -9/Scraptown | Learned location of Proximity Caves (-3) 3116 | -9/Scraptown | Learned location of Warlord (-4) 3116 | -9/Scraptown | Learned 4 Mines zone layouts 3116 | -9/Scraptown | Learned 8 Lower Caves zone layouts 3116 | -9/Scraptown | Learned 20 Upper Caves zone layouts 3116 | -9/Scraptown | Learned 12 Proximity Caves zone layouts 3116 | -9/Scraptown | Learned 16 Proximity Caves zone layouts 3116 | -9/Scraptown | Learned 4 Armory zone layouts 3116 | -9/Scraptown | Learned location of 1 exit from Factory 3116 | -9/Scraptown | Learned location of 2 exits from Factory 3116 | -9/Scraptown | Learned location of 2 exits from Upper Caves 3154 | -9/Scraptown | Visited LU-1G1's Boring Crew 3197 | -9/Scraptown | Visited A0-MCA Data Center 3205 | -9/Scraptown | Given an A- rating by A0-MCA 3208 | -9/Scraptown | Found A0-MCA's Component Scanner 3267 | -9/Scraptown | Visited Research Penetration Think Tank 3309 | -9/Scraptown | Visited Supply Room 3508 | -9/Scraptown | Visited DA-N13 Charitable Foundation 3521 | -9/Scraptown | Found DCF Scrap (29 items) 3565 | -9/Scraptown | Visited Scrap Suit Storage 3617 | -9/Scraptown | Discovered new exit (range 3) 3872 | -9/Scraptown | Released all parts (7) 4143 | -9/Scraptown | Released all parts (7) 5798 | -9/Scraptown | Released all parts (7) 6163 | -9/Scraptown | Build established: Derelict-Mutant 6204 | -9/Scraptown | Found Scrap Suit 6210 | -9/Scraptown | Found Scrap Suit 6317 | -9/Scraptown | Released all parts (7) 6433 | -9/Scraptown | Found Scrap Suit 6435 | -9/Scraptown | Found Scrap Suit 6445 | -9/Scraptown | Found Scrap Suit 6451 | -9/Scraptown | Found Scrap Suit 6453 | -9/Scraptown | Found Scrap Suit 6455 | -9/Scraptown | Found Scrap Suit 6457 | -9/Scraptown | Found Scrap Suit 6518 | -9/Scraptown | Found Scrap Suit 6520 | -9/Scraptown | Found Scrap Suit 6623 | -9/Scraptown | Build established: Mutant 7351 | -9/Scraptown | Released all parts (4) 7929 | -9/Scraptown | Build established: Derelict-Mutant 8201 | -9/Scraptown | Entered Factory 8201 | -6/Factory | Evolved 8 slots: Power x1, Propulsion x2, Utility x4, Weapon x1 8202 | -6/Factory | Identified exit to Lower Caves 8203 | -6/Factory | Identified exit to Factory 8289 | -6/Factory | Spotted B-75 Beast 8382 | -6/Factory | Core integrity fell below 50% 8413 | -6/Factory | Lost 15 parts (2p6n4u3w) 8447 | -6/Factory | Core integrity fell below 20% 8484 | -6/Factory | Destroyed by B-75 Beast with Heavy Plasma Cannon Last Messages --------------- 08436_ Acquired 40 matter. 08437_ Acquired 20 matter. 08440_ Penetrated by Slug. 08441_ Knocked back. 08445_ Dropped Vortex Trap. 08446_ Penetrated by Slug. 08446_ Acquired Vortex Trap. 08447_ Dropped Vortex Trap. 08447_ Knocked back. 08448_ Installed Vortex Trap. 08455_ H-66 Slayer triggered Vortex Trap. 08455_ A wave of accelerated entropy washes over the area. 08455_ H-66 Slayer destroyed. 08455_ G-50 Soldier destroyed. 08455_ Med. Treads destroyed. 08458_ Sub. Shrapnel Launcher destroyed. 08466_ Gravmag Array destroyed. 08470_ U-05 Engineer lays Concrete. 08476_ Acquired Force Field. Map ----- +----------------------------------------------------+ | ???# " #???????????????????????? | | ?### %""""""#"#???????????????????????? | | " ###???????????????????????? | | /### ###?????????????????????????? | | ??"""" """ "" !!#??###???????????????????????????? | | ????"" """"""!*!#????????????????????????????????? | | ????"??"""""" !*#????????????????????????????????? | | ???""" """""" #????????????????????????????????? | | ########?????????????????????????? | | #?????????????????????????? | | #?????????????????????????? | | ? #?????????????????????????? | | ? #?????????????????????????? | | ?? #?????????????????????????? | | ?? ^ ######### #?????????????????????????? | | ?? ????????# #?????????????????????????? | | ??? """ ?????????# #?????????????????????????? | | ????"""??????????# #?????????????????????????? | | ?????????????????#u #?##############??????????? | | ?????????????????#w #?# #??????????? | | ???????????????### ###"" [ #??????????? | | ???????????????# #"" #??????????? | | ???????????????# #"Y #??????????? | | ???????????????#! #"" """ """ #??????????? | | ???????????????# T #"" """ """ #??????????? | | ???????????????# "" @ """ """ #??????????? | | ###########????# # #??????????? | | " ###??# # """ """ #??????????? | | % " ##?# " """ """ ????????????? | | " ### " """ """?????????????? | | " ;# ##= ???????????? | | ;""# ###############??????????? | | % u # #???????????? | | uBB # #???????????? | | BB " #???????????? | | # #???????????? | | # #???????????? | | # #???????????? | | " # #???????????? | | = """"############## #???????????? | | " #????????????# #???????????? | | " ###????????????# #???????????? | | S"" ###??????????????# #???????????? | | ! "" #????????????????# #???????????? | | ########????????????????##############???????????? | | ?????????????????????????????????????????????????? | | ?????????????????????????????????????????????????? | | ?????????????????????????????????????????????????? | | ?????????????????????????????????????????????????? | | ?????????????????????????????????????????????????? | +----------------------------------------------------+ Best States ------------- Heat Dissipation 37 Energy Generation 23 Energy Capacity 450 Matter Stores 300 Matter Capacity 300 Sight Range 16 Terrain Scan Range 16 Terrain Scan Density 10 Utility Shielding 33 Weapon Shielding 33 Melee Speed Boost 40 Evasion (%) 50 Recoil Reduction 2 Item Schematics ----------------- None Robot Schematics ------------------ None Fabricated ------------ Nothing Alien Tech Used ----------------- None Achievements -------------- None Challenges ------------ None Game ------ Seed AerolevPlatingJammer Manual? 0 Play Time 01:24:10 Cumulative 69.3 hours Start 2024.11.28 @ 09:17:30 End 2024.11.29 @ 10:11:20 Sessions 7 Manual Loads 0 Difficulty Rogue Special Mode None Game No. 113 Rogue 113 Adventurer 0 Explorer 0 Win Type - Total 0 Types 0/0/0/0/0/0/0/0/0 Lore% 48 Gallery% 39 Achievement% 30 Wizard Run 0 Options --------- Layout 1 ASCII 0 Keyboard 0 Movement Arrows Keybinds 0 Fullscreen 1 Font 24/Smallcaps Map View 50x40 Zoom Use 19% Tactical HUD 1 Map Filters NONE Filters NONE Steam 1 RUN: f456c590-a7d9-4f69-ab13-38e5fb8ff8e3